[Event "Portugal Open 2019"]
[Site "Lisbon"]
[Date "2019.02.09"]
[Round "9.4"]
[White "Hansen, Eric"]
[Black "Miezis, Normunds"]
[Result "1/2-1/2"]
[ECO "B42"]
[WhiteElo "2615"]
[BlackElo "2467"]
[Annotator "ChessBase"]
[PlyCount "123"]
[EventDate "2019.01.25"]
[EventType "swiss"]
[EventCountry "POR"]
[SourceTitle "playchess.com"]
[Source "ChessBase"]
[SourceQuality "1"]
[TimeControl "5400+30"]

1. e4 {[%emt 0:00:00]} c5 {[%emt 0:00:00]} 2. Nf3 {[%emt 0:00:02]} e6 {[%emt 0:00:00]} 3. d4 {[%emt 0:00:06]} cxd4 {[%emt 0:00:09]} 4. Nxd4 {[%emt 0:00:06]} a6 {[%emt 0:00:10]} 5. Bd3 {[%emt 0:01:05]} Ne7 {[%emt 0:02:44]} 6. O-O {[%emt 0:01:19]} Nbc6 {[%emt 0:00:38]} 7. Nb3 {[%emt 0:00:38]} g6 {[%emt 0:02:28]} 8. Nc3 {[%emt 0:03:26]} Bg7 {[%emt 0:04:37]} 9. Bf4 {[%emt 0:00:46]} Ne5 {[%emt 0:09:19]} 10. Qd2 {[%emt 0:00:07]} O-O {[%emt 0:06:43]} 11. Bh6 {[%emt 0:03:24]} Bxh6 {[%emt 0:02:41]} 12. Qxh6 {[%emt 0:00:07]} f5 {[%emt 0:00:45]} 13. exf5 {[%emt 0:01:31]} gxf5 {[%emt 0:02:24]} 14. Rae1 {[%emt 0:04:57]} N7g6 {[%emt 0:01:48]} 15. Qd2 {[%emt 0:01:05]} b5 {[%emt 0:06:10]} 16. f4 {[%emt 0:00:16]} Nc4 {[%emt 0:03:02]} 17. Bxc4 {[%emt 0:00:41]} bxc4 {[%emt 0:00:41]} 18. Nc5 {[%emt 0:02:09]} Rb8 {[%emt 0:03:47]} 19. b3 {[%emt 0:02:56]} Qa5 {[%emt 0:04:33]} 20. Qe3 {[%emt 0:06:54]} Rf7 {[%emt 0:07:39]} 21. Rd1 {[%emt 0:03:34]} cxb3 {[%emt 0:02:20]} 22. axb3 {[%emt 0:01:01]} Rb4 {[%emt 0:00:30]} 23. Nd3 {[%emt 0:07:19]} Rb8 {[%emt 0:05:24]} 24. Nb2 {[%emt 0:04:28]} Bb7 {[%emt 0:09:37]} 25. Nc4 {[%emt 0:00:32]} Qc7 {[%emt 0:00:16]} 26. Nd6 {[%emt 0:07:36]} Rg7 {[%emt 0:00:20]} 27. Nxb7 {[%emt 0:00:43]} Qxb7 {[%emt 0:02:56]} 28. Rf2 {[%emt 0:00:07]} Nh4 {[%emt 0:04:58]} 29. g3 {[%emt 0:00:34]} Ng6 {[%emt 0:01:08]} 30. Na4 {[%emt 0:00:09]} Qc6 {[%emt 0:00:53]} 31. Qc5 {[%emt 0:06:00]} Rc8 {[%emt 0:05:15]} 32. Qd4 {[%emt 0:01:32]} h5 {[%emt 0:00:28]} 33. Rd3 {[%emt 0:03:01]} Qe4 {[%emt 0:00:28]} 34. Qxe4 {[%emt 0:15:55]} fxe4 {[%emt 0:00:07]} 35. Rd6 {[%emt 0:00:44]} e3 {[%emt 0:01:50]} 36. Rg2 {[%emt 0:00:27]} h4 {[%emt 0:02:47]} 37. Kf1 {[%emt 0:05:49]} Rf8 {[%emt 0:00:40]} 38. Rd1 {[%emt 0:09:58]} h3 {[%emt 0:02:26]} 39. Rg1 {[%emt 0:00:10]} e5 {[%emt 0:02:19]} 40. Ke2 {[%emt 0:00:05]} exf4 {[%emt 0:00:38]} 41. gxf4 {[%emt 0:00:29]} Nxf4+ {[%emt 0:00:45]} 42. Kxe3 {[%emt 0:00:06]} Ng2+ {[%emt 0:00:31]} 43. Kd4 {[%emt 0:00:22]} Rf2 {[%emt 0:01:08]} 44. Rd3 {[%emt 0:01:56]} Rxc2 {[%emt 0:01:12]} 45. Rxh3 {[%emt 0:00:11]} Kf8 {[%emt 0:00:53]} 46. Nc3 {[%emt 0:04:52]} Rd2+ {[%emt 0:00:43]} 47. Kc5 {[%emt 0:00:18]} Rg5+ {[%emt 0:01:04]} 48. Kb6 {[%emt 0:00:23]} Rg6+ {[%emt 0:00:14]} 49. Kc7 {[%emt 0:00:41]} d5 {[%emt 0:00:27]} 50. Kd7 {[%emt 0:02:38]} Rf2 {[%emt 0:01:00]} 51. Rh7 {[%emt 0:01:14]} Rff6 {[%emt 0:00:54]} 52. Ne2 {[%emt 0:00:48]} Rc6 {[%emt 0:00:36]} 53. Rf1+ {[%emt 0:00:21]} Kg8 {[%emt 0:00:03]} 54. Rh3 {[%emt 0:00:44]} Rcd6+ {[%emt 0:00:42]} 55. Kc7 {[%emt 0:00:09]} Rc6+ {[%emt 0:00:34]} 56. Kd7 {[%emt 0:00:24]} Rcd6+ {[%emt 0:00:44]} 57. Kc7 {[%emt 0:00:01]} d4 {[%emt 0:00:39]} 58. Rg3 {[%emt 0:00:43]} d3 {[%emt 0:00:19]} 59. Nf4 {[%emt 0:01:13]} Nxf4 {[%emt 0:00:43]} 60. Rxf4 {[%emt 0:00:34]} Rc6+ {[%emt 0:00:20]} 61. Kd7 {[%emt 0:00:12]} Rxg3 {[%emt 0:00:33]} 62. Kxc6 {[%emt 0:00:37]} 1/2-1/2

[Event "Portugal Open 2019"]
[Site "Lisbon"]
[Date "2019.02.09"]
[Round "9.6"]
[White "David, Alberto"]
[Black "Thorhallsson, Throstur"]
[Result "1/2-1/2"]
[ECO "B52"]
[WhiteElo "2560"]
[BlackElo "2425"]
[Annotator "ChessBase"]
[PlyCount "59"]
[EventDate "2019.01.25"]
[EventType "swiss"]
[EventCountry "POR"]
[SourceTitle "playchess.com"]
[Source "ChessBase"]
[SourceQuality "1"]
[TimeControl "5400+30"]

1. e4 {[%emt 0:00:31]} c5 {[%emt 0:00:17]} 2. Nf3 {[%emt 0:00:10]} d6 {[%emt 0:00:35]} 3. Bb5+ {[%emt 0:00:52]} Bd7 {[%emt 0:01:00]} 4. c4 {[%emt 0:00:20]} Nc6 {[%emt 0:02:03]} 5. Nc3 {[%emt 0:00:26]} g6 {[%emt 0:00:58]} 6. d4 {[%emt 0:00:18]} cxd4 {[%emt 0:00:19]} 7. Nxd4 {[%emt 0:00:07]} Bg7 {[%emt 0:00:13]} 8. Be3 {[%emt 0:00:08]} Nf6 {[%emt 0:00:40]} 9. h3 {[%emt 0:04:23]} O-O {[%emt 0:01:19]} 10. O-O {[%emt 0:01:48]} a6 {[%emt 0:09:58]} 11. Bxc6 {[%emt 0:00:40]} bxc6 {[%emt 0:01:25]} 12. c5 {[%emt 0:07:41]} Qb8 {[%emt 0:06:11]} 13. Qd2 {[%emt 0:11:07]} Rd8 {[%emt 0:07:15]} 14. cxd6 {[%emt 0:02:02]} exd6 {[%emt 0:01:42]} 15. Rfe1 {[%emt 0:12:07]} c5 {[%emt 0:11:01]} 16. Nf3 {[%emt 0:16:13]} Bc6 {[%emt 0:03:09]} 17. Bh6 {[%emt 0:00:12]} Re8 {[%emt 0:09:57]} 18. Bxg7 {[%emt 0:00:15]} Kxg7 {[%emt 0:00:05]} 19. Qc2 {[%emt 0:05:57]} Ra7 {[%emt 0:04:28]} 20. Re3 {[%emt 0:01:01]} Rae7 {[%emt 0:01:29]} 21. Rae1 {[%emt 0:00:12]} Qb7 {[%emt 0:01:11]} 22. Nd2 {[%emt 0:02:26]} d5 {[%emt 0:03:34]} 23. exd5 {[%emt 0:00:30]} Rxe3 {[%emt 0:00:20]} 24. Rxe3 {[%emt 0:00:05]} Rxe3 {[%emt 0:00:16]} 25. fxe3 {[%emt 0:00:04]} Bxd5 {[%emt 0:01:01]} 26. Nxd5 {[%emt 0:08:15]} Qxd5 {[%emt 0:00:19]} 27. b3 {[%emt 0:02:25]} Kg8 {[%emt 0:06:10]} 28. Qc3 {[%emt 0:06:19]} Ne4 {[%emt 0:01:19]} 29. Nxe4 {[%emt 0:00:06]} Qxe4 {[%emt 0:00:04]} 30. Qxc5 {[%emt 0:03:49]} 1/2-1/2

[Event "Portugal Open 2019"]
[Site "Lisbon"]
[Date "2019.02.09"]
[Round "9.7"]
[White "Yankelevich, Lev"]
[Black "Christiansen, Johan-Sebastian"]
[Result "1/2-1/2"]
[ECO "E32"]
[WhiteElo "2445"]
[BlackElo "2559"]
[Annotator "ChessBase"]
[PlyCount "83"]
[EventDate "2019.01.25"]
[EventType "swiss"]
[EventCountry "POR"]
[SourceTitle "playchess.com"]
[Source "ChessBase"]
[SourceQuality "1"]
[TimeControl "5400+30"]

1. d4 Nf6 {[%emt 0:07:35]} 2. c4 {[%emt 0:00:47]} e6 {[%emt 0:00:11]} 3. Nc3 {[%emt 0:00:04]} Bb4 {[%emt 0:00:11]} 4. Qc2 {[%emt 0:00:38]} O-O {[%emt 0:00:05]} 5. a3 {[%emt 0:00:05]} Bxc3+ {[%emt 0:00:08]} 6. Qxc3 {[%emt 0:00:04]} d5 {[%emt 0:00:16]} 7. Nf3 {[%emt 0:00:21]} dxc4 {[%emt 0:00:06]} 8. Qxc4 {[%emt 0:00:06]} b6 {[%emt 0:00:01]} 9. Rg1 {[%emt 0:03:24]} Ba6 {[%emt 0:01:24]} 10. Qa4 {[%emt 0:02:20]} Qd7 {[%emt 0:17:42]} 11. Qxd7 {[%emt 0:03:49]} Nbxd7 {[%emt 0:00:03]} 12. g4 {[%emt 0:00:06]} c5 {[%emt 0:05:05]} 13. g5 {[%emt 0:01:53]} Ne8 {[%emt 0:02:30]} 14. Bf4 {[%emt 0:15:53]} Rc8 {[%emt 0:05:03]} 15. Rd1 {[%emt 0:03:45]} Nc7 {[%emt 0:06:53]} 16. dxc5 {[%emt 0:11:13]} Nxc5 {[%emt 0:00:14]} 17. Bd6 {[%emt 0:00:09]} Rfe8 {[%emt 0:02:14]} 18. Bxc5 {[%emt 0:00:18]} bxc5 {[%emt 0:00:02]} 19. Rc1 {[%emt 0:01:09]} Nd5 {[%emt 0:09:05]} 20. e3 {[%emt 0:05:12]} Bxf1 {[%emt 0:16:20]} 21. Kxf1 {[%emt 0:01:17]} Rb8 {[%emt 0:00:06]} 22. Rc2 {[%emt 0:00:06]} Rb3 {[%emt 0:00:45]} 23. Nd2 {[%emt 0:11:13]} Rxe3 {[%emt 0:00:08]} 24. Rg3 {[%emt 0:00:06]} Rxg3 {[%emt 0:01:58]} 25. hxg3 {[%emt 0:00:20]} Rb8 {[%emt 0:02:09]} 26. Rxc5 {[%emt 0:00:13]} h6 {[%emt 0:00:02]} 27. b4 {[%emt 0:03:40]} hxg5 {[%emt 0:00:07]} 28. Nf3 {[%emt 0:00:03]} g4 {[%emt 0:11:22]} 29. Ne5 {[%emt 0:00:06]} Rb7 {[%emt 0:00:10]} 30. Rc8+ {[%emt 0:08:26]} Kh7 {[%emt 0:00:02]} 31. Rc6 {[%emt 0:00:14]} f6 {[%emt 0:04:00]} 32. Nxg4 {[%emt 0:01:04]} a5 {[%emt 0:00:26]} 33. bxa5 {[%emt 0:00:55]} Rb1+ {[%emt 0:00:06]} 34. Kg2 {[%emt 0:02:45]} Ra1 {[%emt 0:00:11]} 35. Rxe6 {[%emt 0:00:10]} Rxa3 {[%emt 0:00:04]} 36. Ra6 {[%emt 0:00:07]} Ra4 {[%emt 0:03:23]} 37. Kf3 {[%emt 0:00:57]} Nb4 {[%emt 0:02:24]} 38. Ra7 {[%emt 0:02:22]} Nc6 {[%emt 0:01:22]} 39. Rc7 {[%emt 0:00:06]} Nd4+ {[%emt 0:00:08]} 40. Kg2 {[%emt 0:00:50]} Kg6 {[%emt 0:00:34]} 41. Rd7 {[%emt 0:01:58]} Nf5 {[%emt 0:01:37]} 42. Nh2 {[%emt 0:01:37]} 1/2-1/2

[Event "Portugal Open 2019"]
[Site "Lisbon"]
[Date "2019.02.09"]
[Round "9.8"]
[White "Annaberdiev, Meilis"]
[Black "Pantzar, Milton"]
[Result "1-0"]
[ECO "C84"]
[WhiteElo "2522"]
[BlackElo "2331"]
[Annotator "ChessBase"]
[PlyCount "149"]
[EventDate "2019.01.25"]
[EventType "swiss"]
[EventCountry "POR"]
[SourceTitle "playchess.com"]
[Source "ChessBase"]
[SourceQuality "1"]
[TimeControl "5400+30"]

1. e4 {[%emt 0:00:16]} e5 {[%emt 0:00:00]} 2. Nf3 {[%emt 0:00:07]} Nc6 {[%emt 0:00:05]} 3. Bb5 {[%emt 0:00:06]} a6 {[%emt 0:00:15]} 4. Ba4 {[%emt 0:00:05]} Nf6 {[%emt 0:00:34]} 5. O-O {[%emt 0:00:06]} Be7 {[%emt 0:00:28]} 6. d3 {[%emt 0:00:04]} d6 {[%emt 0:01:37]} 7. c3 {[%emt 0:00:04]} O-O {[%emt 0:01:33]} 8. Nbd2 {[%emt 0:00:06]} b5 {[%emt 0:03:40]} 9. Bc2 {[%emt 0:00:07]} d5 {[%emt 0:00:49]} 10. Re1 {[%emt 0:00:11]} d4 {[%emt 0:01:50]} 11. Nb3 {[%emt 0:00:09]} Bg4 {[%emt 0:06:48]} 12. h3 {[%emt 0:02:02]} Bh5 {[%emt 0:12:52]} 13. cxd4 {[%emt 0:00:48]} Bxf3 {[%emt 0:07:45]} 14. Qxf3 {[%emt 0:00:10]} exd4 {[%emt 0:01:03]} 15. e5 {[%emt 0:16:11]} Nd5 {[%emt 0:01:06]} 16. a3 {[%emt 0:00:19]} a5 {[%emt 0:15:24]} 17. Qg4 {[%emt 0:11:39]} Qc8 {[%emt 0:05:37]} 18. Qe4 {[%emt 0:00:06]} Rd8 {[%emt 0:01:45]} 19. Nd2 {[%emt 0:00:19]} a4 {[%emt 0:04:47]} 20. Nf3 {[%emt 0:00:13]} Qe6 {[%emt 0:04:28]} 21. Bd2 {[%emt 0:00:41]} h6 {[%emt 0:10:19]} 22. h4 {[%emt 0:04:22]} Bc5 {[%emt 0:02:29]} 23. Rac1 {[%emt 0:03:22]} Bb6 {[%emt 0:01:29]} 24. Bb1 {[%emt 0:00:43]} Nde7 {[%emt 0:00:48]} 25. h5 {[%emt 0:01:38]} Na5 {[%emt 0:03:34]} 26. Bb4 {[%emt 0:01:19]} Rac8 {[%emt 0:05:09]} 27. Bxe7 {[%emt 0:04:00]} Qxe7 {[%emt 0:00:05]} 28. Ba2 {[%emt 0:00:02]} c5 {[%emt 0:00:47]} 29. e6 {[%emt 0:00:42]} c4 {[%emt 0:01:36]} 30. exf7+ {[%emt 0:00:20]} Qxf7 {[%emt 0:00:05]} 31. Ne5 {[%emt 0:00:02]} Qe6 {[%emt 0:02:40]} 32. dxc4 {[%emt 0:01:36]} bxc4 {[%emt 0:00:38]} 33. Rxc4 {[%emt 0:04:43]} Nxc4 {[%emt 0:01:15]} 34. Nxc4 {[%emt 0:00:02]} Qxe4 {[%emt 0:00:36]} 35. Rxe4 {[%emt 0:02:46]} Kh8 {[%emt 0:00:46]} 36. Nxb6 {[%emt 0:00:52]} Rc1+ {[%emt 0:00:15]} 37. Kh2 {[%emt 0:00:05]} d3 {[%emt 0:00:15]} 38. Nxa4 {[%emt 0:01:53]} d2 {[%emt 0:02:00]} 39. Bb3 {[%emt 0:00:01]} Rb8 {[%emt 0:01:21]} 40. Bd1 {[%emt 0:10:25]} Rxd1 {[%emt 0:00:23]} 41. Rd4 {[%emt 0:00:01]} Rc1 {[%emt 0:00:57]} 42. Rxd2 {[%emt 0:00:10]} Rc4 {[%emt 0:00:13]} 43. b4 {[%emt 0:01:13]} Rh4+ {[%emt 0:00:42]} 44. Kg3 {[%emt 0:00:05]} Rxh5 {[%emt 0:00:03]} 45. Nc5 {[%emt 0:00:09]} Rg5+ {[%emt 0:00:27]} 46. Kh2 {[%emt 0:00:23]} Rg4 {[%emt 0:00:46]} 47. Rd7 {[%emt 0:02:11]} Ra8 {[%emt 0:00:36]} 48. f3 {[%emt 0:01:27]} Rc4 {[%emt 0:00:21]} 49. Rd3 {[%emt 0:01:14]} Kg8 {[%emt 0:00:49]} 50. Kh3 {[%emt 0:03:21]} Ra7 {[%emt 0:00:17]} 51. Rb3 {[%emt 0:00:16]} Ra8 {[%emt 0:00:28]} 52. Rd3 {[%emt 0:01:15]} Ra7 {[%emt 0:00:10]} 53. Kg3 {[%emt 0:00:05]} Kf7 {[%emt 0:00:31]} 54. Rb3 {[%emt 0:00:09]} Ke7 {[%emt 0:00:48]} 55. a4 {[%emt 0:00:22]} Kd6 {[%emt 0:00:26]} 56. Ne4+ {[%emt 0:01:11]} Ke5 {[%emt 0:00:21]} 57. a5 {[%emt 0:00:12]} Rc2 {[%emt 0:00:52]} 58. Rb1 {[%emt 0:03:37]} Ra6 {[%emt 0:00:29]} 59. Kh3 {[%emt 0:00:50]} Kf4 {[%emt 0:00:35]} 60. Rb3 {[%emt 0:00:33]} g5 {[%emt 0:00:36]} 61. Nc5 {[%emt 0:00:55]} Ra8 {[%emt 0:00:26]} 62. a6 {[%emt 0:00:47]} h5 {[%emt 0:00:35]} 63. Nd3+ {[%emt 0:00:34]} Kf5 {[%emt 0:00:09]} 64. b5 {[%emt 0:00:24]} g4+ {[%emt 0:00:15]} 65. fxg4+ {[%emt 0:00:05]} hxg4+ {[%emt 0:00:07]} 66. Kg3 {[%emt 0:00:02]} Rcc8 {[%emt 0:01:10]} 67. Nb4 {[%emt 0:06:45]} Rcb8 {[%emt 0:00:21]} 68. Nc6 {[%emt 0:01:24]} Rb6 {[%emt 0:00:10]} 69. Re3 {[%emt 0:01:25]} Kf6 {[%emt 0:01:09]} 70. Nd4 {[%emt 0:00:15]} Rd8 {[%emt 0:00:36]} 71. Re4 {[%emt 0:00:08]} Rbd6 {[%emt 0:00:22]} 72. Rf4+ {[%emt 0:03:09]} Kg6 {[%emt 0:00:43]} 73. Nc6 {[%emt 0:00:09]} Rd3+ {[%emt 0:00:23]} 74. Kxg4 {[%emt 0:00:32]} Re8 {[%emt 0:00:07]} 75. a7 {[%emt 0:00:52]} 1-0

[Event "Portugal Open 2019"]
[Site "Lisbon"]
[Date "2019.02.09"]
[Round "9.9"]
[White "Alshameary Puente, Ismael"]
[Black "Jakubowski, Krzysztof"]
[Result "0-1"]
[ECO "E46"]
[WhiteElo "2418"]
[BlackElo "2514"]
[Annotator "RC"]
[PlyCount "82"]
[EventDate "2019.01.25"]
[EventType "swiss"]
[EventCountry "POR"]
[SourceTitle "playchess.com"]
[Source "ChessBase"]
[SourceQuality "1"]
[TimeControl "5400+30"]

1. d4 {[%emt 0:07:35]} Nf6 {[%emt 0:00:00]} 2. c4 {[%emt 0:00:04]} e6 {[%emt 0:00:02]} 3. Nc3 {[%emt 0:00:03]} Bb4 {[%emt 0:00:08]} 4. e3 {[%emt 0:00:03]} O-O {[%emt 0:00:11]} 5. Nge2 {[%emt 0:00:59]} c6 {[%emt 0:00:12]} 6. a3 {[%emt 0:00:05]} Ba5 {[%emt 0:00:04]} 7. Bd2 {[%emt 0:06:21]} d5 {[%emt 0:00:33]} 8. Ng3 {[%emt 0:04:17]} Nbd7 {[%emt 0:00:24]} 9. cxd5 {[%emt 0:04:19]} exd5 {[%emt 0:01:04]} 10. Bd3 {[%emt 0:01:07]} Bc7 {[%emt 0:02:09]} 11. Qc2 {[%emt 0:04:51]} Re8 {[%emt 0:02:27]} 12. Nce2 {[%emt 0:04:06]} a5 {[%emt 0:09:17]} 13. O-O {[%emt 0:04:22]} g6 {[%emt 0:03:34]} 14. f3 {[%emt 0:02:34]} Bb6 {[%emt 0:05:22]} 15. b4 {[%emt 0:05:06]} Qe7 {[%emt 0:06:47]} 16. Rfc1 {[%emt 0:04:33]} axb4 {[%emt 0:18:04]} 17. axb4 {[%emt 0:01:44]} Rxa1 {[%emt 0:00:11]} 18. Rxa1 {[%emt 0:00:02]} Bc7 {[%emt 0:00:17]} 19. Nf1 {[%emt 0:09:05]} Bd6 {[%emt 0:03:39]} 20. Qc3 {[%emt 0:03:40]} Nb6 {[%emt 0:01:30]} 21. b5 {[%emt 0:00:43]} cxb5 {[%emt 0:02:27]} 22. Bxb5 {[%emt 0:00:07]} Bd7 {[%emt 0:00:03]} 23. Rb1 {[%emt 0:02:10]} Rc8 {[%emt 0:01:30]} 24. Qa5 {[%emt 0:05:28]} Bxb5 {[%emt 0:02:16]} 25. Qxb5 {[%emt 0:05:48]} Nc4 {[%emt 0:00:23]} 26. Bb4 {[%emt 0:00:10]} b6 {[%emt 0:01:41]} 27. Qa6 {[%emt 0:04:19]} Rc7 {[%emt 0:06:08]} 28. Bxd6 {[%emt 0:01:23]} Qxd6 {[%emt 0:00:05]} 29. Rb3 {[%emt 0:04:58]} Kg7 {[%emt 0:03:46]} 30. Nc3 {[%emt 0:00:37]} Qc6 {[%emt 0:01:35]} 31. Na4 {[%emt 0:07:29]} Qe6 {[%emt 0:01:36]} 32. Nb2 {[%emt 0:01:08]} Rc6 {[%emt 0:03:07]} 33. Qb5 {[%emt 0:00:10]} Na5 {[%emt 0:01:03]} 34. Rb4 {[%emt 0:02:21]} Ne8 {[%emt 0:01:54]} 35. Nd3 {[%emt 0:01:33]} Nd6 {[%emt 0:02:23]} 36. Qa4 {[%emt 0:00:15]} Nf5 {[%emt 0:00:34]} 37. Ne5 {[%emt 0:02:26]} Rc1 {[%emt 0:01:38]} 38. Qa3 {[%emt 0:00:44]} Qc8 {[%emt 0:01:15]} 39. Rxb6 {[%emt 0:00:54]} Rd1 {[%emt 0:05:01]} 40. g4 {[%emt 0:01:07]} Nc4 {[%emt 0:03:38]} 41. Qa4 {[%emt 0:01:04]} Nfxe3 {[%emt 0:00:49]} 0-1

[Event "Portugal Open 2019"]
[Site "Lisbon"]
[Date "2019.02.09"]
[Round "9.10"]
[White "Rajesh, V A V"]
[Black "Spraggett, Kevin"]
[Result "1/2-1/2"]
[ECO "A93"]
[WhiteElo "2406"]
[BlackElo "2513"]
[Annotator "ChessBase"]
[PlyCount "75"]
[EventDate "2019.01.25"]
[EventType "swiss"]
[EventCountry "POR"]
[SourceTitle "playchess.com"]
[Source "ChessBase"]
[SourceQuality "1"]
[TimeControl "5400+30"]

1. d4 {[%emt 0:00:00]} e6 {[%emt 0:00:02]} 2. c4 {[%emt 0:00:00]} f5 {[%emt 0:00:51]} 3. Nf3 {[%emt 0:00:40]} Nf6 {[%emt 0:00:12]} 4. g3 {[%emt 0:00:06]} d5 {[%emt 0:00:31]} 5. Bg2 {[%emt 0:00:09]} Be7 {[%emt 0:00:26]} 6. O-O {[%emt 0:02:41]} O-O {[%emt 0:02:25]} 7. b3 {[%emt 0:01:18]} Ne4 {[%emt 0:06:01]} 8. cxd5 {[%emt 0:15:42]} exd5 {[%emt 0:00:27]} 9. Ne5 {[%emt 0:00:10]} c6 {[%emt 0:01:28]} 10. f3 {[%emt 0:01:15]} Nd6 {[%emt 0:01:01]} 11. e3 {[%emt 0:01:37]} Nd7 {[%emt 0:03:19]} 12. Nd3 {[%emt 0:05:50]} Nf6 {[%emt 0:03:11]} 13. Nc3 {[%emt 0:02:04]} Re8 {[%emt 0:04:07]} 14. Bb2 {[%emt 0:03:23]} Bf8 {[%emt 0:01:03]} 15. Qd2 {[%emt 0:00:07]} g6 {[%emt 0:01:33]} 16. Rac1 {[%emt 0:00:33]} Bh6 {[%emt 0:01:40]} 17. Ne5 {[%emt 0:02:18]} Nf7 {[%emt 0:03:39]} 18. Ne2 {[%emt 0:05:34]} Nd6 {[%emt 0:03:01]} 19. Nf4 {[%emt 0:00:42]} a5 {[%emt 0:05:07]} 20. a4 {[%emt 0:07:43]} Qb6 {[%emt 0:03:59]} 21. Ba3 {[%emt 0:03:29]} Bf8 {[%emt 0:00:53]} 22. Rb1 {[%emt 0:06:16]} Be6 {[%emt 0:02:12]} 23. Bc5 {[%emt 0:00:39]} Qc7 {[%emt 0:00:35]} 24. Rfc1 {[%emt 0:00:12]} Nd7 {[%emt 0:02:52]} 25. Nxd7 {[%emt 0:08:37]} Bxd7 {[%emt 0:02:30]} 26. Bf1 {[%emt 0:03:54]} Qd8 {[%emt 0:05:01]} 27. Nd3 {[%emt 0:04:04]} b6 {[%emt 0:00:16]} 28. Bxd6 {[%emt 0:00:16]} Bxd6 {[%emt 0:00:03]} 29. f4 {[%emt 0:00:07]} Qe7 {[%emt 0:03:46]} 30. Ne5 {[%emt 0:00:07]} Rec8 {[%emt 0:08:45]} 31. Rc2 {[%emt 0:00:30]} Be8 {[%emt 0:05:56]} 32. Bg2 {[%emt 0:01:52]} Kg7 {[%emt 0:00:13]} 33. Qd3 {[%emt 0:05:08]} Rc7 {[%emt 0:02:56]} 34. Rbc1 {[%emt 0:00:10]} Ba3 {[%emt 0:00:51]} 35. Ra1 {[%emt 0:00:06]} Bd6 {[%emt 0:02:14]} 36. Rac1 {[%emt 0:00:06]} Ba3 {[%emt 0:00:05]} 37. Ra1 {[%emt 0:01:53]} Bd6 {[%emt 0:00:05]} 38. Rac1 {[%emt 0:01:09]} 1/2-1/2

[Event "Portugal Open 2019"]
[Site "Lisbon"]
[Date "2019.02.09"]
[Round "9.11"]
[White "Haug, Johannes"]
[Black "Galego, Luis"]
[Result "1/2-1/2"]
[ECO "E16"]
[WhiteElo "2403"]
[BlackElo "2508"]
[Annotator "ChessBase"]
[PlyCount "69"]
[EventDate "2019.01.25"]
[EventType "swiss"]
[EventCountry "POR"]
[SourceTitle "playchess.com"]
[Source "ChessBase"]
[SourceQuality "1"]
[TimeControl "5400+30"]

1. d4 {[%emt 0:03:24]} Nf6 {[%emt 0:00:13]} 2. c4 {[%emt 0:00:13]} e6 {[%emt 0:00:59]} 3. Nf3 {[%emt 0:00:25]} Bb4+ {[%emt 0:01:12]} 4. Bd2 {[%emt 0:00:05]} Qe7 {[%emt 0:00:51]} 5. g3 {[%emt 0:00:55]} O-O {[%emt 0:01:57]} 6. Bg2 {[%emt 0:00:28]} Bxd2+ {[%emt 0:00:36]} 7. Qxd2 {[%emt 0:01:16]} d6 {[%emt 0:02:58]} 8. Nc3 {[%emt 0:01:13]} e5 {[%emt 0:00:59]} 9. O-O {[%emt 0:01:05]} Re8 {[%emt 0:06:26]} 10. e4 {[%emt 0:00:18]} Bg4 {[%emt 0:01:24]} 11. Ne1 {[%emt 0:00:37]} Nc6 {[%emt 0:02:08]} 12. Nc2 {[%emt 0:00:10]} exd4 {[%emt 0:02:10]} 13. Nxd4 {[%emt 0:00:16]} Nxd4 {[%emt 0:00:57]} 14. Qxd4 {[%emt 0:00:06]} Qe5 {[%emt 0:00:34]} 15. Qd2 {[%emt 0:00:53]} Qh5 {[%emt 0:00:53]} 16. f3 {[%emt 0:00:42]} Be6 {[%emt 0:04:08]} 17. b3 {[%emt 0:00:58]} Qa5 {[%emt 0:01:35]} 18. Rad1 {[%emt 0:03:19]} a6 {[%emt 0:04:32]} 19. Nd5 {[%emt 0:05:20]} Qc5+ {[%emt 0:17:38]} 20. Qf2 {[%emt 0:02:32]} Qxf2+ {[%emt 0:02:28]} 21. Rxf2 {[%emt 0:06:54]} Rac8 {[%emt 0:02:34]} 22. Nxf6+ {[%emt 0:10:17]} gxf6 {[%emt 0:00:05]} 23. g4 {[%emt 0:00:06]} b5 {[%emt 0:01:38]} 24. Bf1 {[%emt 0:03:43]} bxc4 {[%emt 0:00:40]} 25. Bxc4 {[%emt 0:00:09]} Bxc4 {[%emt 0:00:08]} 26. bxc4 {[%emt 0:00:06]} Re5 {[%emt 0:00:21]} 27. Rc2 {[%emt 0:09:35]} Rb8 {[%emt 0:01:27]} 28. Kf2 {[%emt 0:03:23]} Kf8 {[%emt 0:02:01]} 29. Rd5 {[%emt 0:12:27]} Ke7 {[%emt 0:00:57]} 30. Ke3 {[%emt 0:00:07]} c6 {[%emt 0:01:45]} 31. Rd3 {[%emt 0:00:04]} Rb4 {[%emt 0:01:32]} 32. Rcd2 {[%emt 0:05:42]} Re6 {[%emt 0:03:07]} 33. Rc2 {[%emt 0:00:03]} Re5 {[%emt 0:02:13]} 34. Rcd2 {[%emt 0:00:10]} Re6 {[%emt 0:01:08]} 35. Rc2 {[%emt 0:00:05]} 1/2-1/2